fUST/lending_fUST_20250724
["ID","MTS","AMOUNT","RATE_DAILY","PERIOD"]
[374496094,1753323059825,-460.0,0.00020821,2]
[374496095,1753323059834,-2406.97549896,0.00020821,2]
[374496096,1753323059935,-2487.72450104,0.00020821,2]
[374496097,1753323059945,-460.0,0.00020821,2]
[374496098,1753323059955,-460.0,0.00020821,2]
[374496099,1753323059965,-460.0,0.00020821,2]
[374496100,1753323059974,-102.42783634,0.00020821,2]
[374496101,1753323060019,-460.0,0.0002,2]
[374496102,1753323060028,-357.57216366,0.00020821,2]
[374496103,1753323060038,-426.23943,0.00020821,2]
[374496104,1753323060047,-121.47839216,0.00020821,2]
[374496105,1753323060059,-338.52160784,0.00020821,2]
[374496106,1753323060069,-460.0,0.00020821,2]
[374496107,1753323060079,-426.23942,0.00020821,2]
[374496108,1753323060089,-183.705624,0.00020821,2]
[374496109,1753323060098,-183.705625,0.00020821,2]
[374496110,1753323060107,-460.0,0.00020821,2]
[374496111,1753323060116,-1522.93,0.00020821,2]
[374496112,1753323060125,-460.0,0.00020821,2]
[374496113,1753323060135,-206.113409,0.00020821,2]
[374496114,1753323060146,-1673.05,0.00020821,2]
[374496115,1753323060156,-206.113409,0.00020821,2]
[374496116,1753323060165,-999.29,0.00020821,2]
[374496117,1753323060174,-1145.01,0.00020821,2]
[374496118,1753323060184,-460.0,0.00020821,2]
[374496119,1753323060194,-534.2,0.00020821,2]
[374496120,1753323060203,-460.0,0.00020821,2]
[374496121,1753323060212,-228.253748,0.00020821,2]
[374496122,1753323060223,-625.64,0.00020821,2]
[374496123,1753323060232,-460.0,0.00020821,2]
[374496124,1753323060243,-460.0,0.00020821,2]
[374496125,1753323060253,-460.0,0.00020821,2]
[374496126,1753323060263,-228.253743,0.00020821,2]
[374496127,1753323060273,-460.0,0.00020821,2]
[374496128,1753323060282,-566.83,0.00020821,2]
[374496129,1753323060292,-1345.82,0.00020821,2]
[374496130,1753323060301,-631.8,0.00020821,2]
[374496131,1753323060311,-500.0,0.00020822,2]
[374496132,1753323060321,-500.0,0.00020827,2]
[374496133,1753323060330,-150.0,0.00020832,2]
[374496134,1753323060339,-490.176479,0.00020834,2]
[374496135,1753323060348,-370.14747,0.00020834,2]
[374496136,1753323060358,-490.176479,0.00020834,2]
[374496137,1753323060367,-370.14747,0.00020834,2]
[374496138,1753323060376,-250.12389181,0.000209,2]
[374496139,1753323060386,-151.0,0.000209,3]
[374496140,1753323060395,-180.35332708,0.00020916,2]
[374496141,1753323060404,-160.32969615,0.00020916,2]
[374496142,1753323060414,-407.64538151,0.00020916,2]
[374496143,1753323060423,-500.36944288,0.00020916,2]
[374496144,1753323060431,-504.17387617,0.00020916,2]
[374496145,1753323060442,-151.0,0.00020923,2]
[374496146,1753323060451,-151.684852,0.00020923,2]
[374496147,1753323060536,-329.548796,0.00020923,2]
[374496148,1753323060549,-329.548796,0.00020923,2]
[374496149,1753323060559,-272.699443,0.00020923,2]
[374496150,1753323060569,-272.699443,0.00020923,2]
[374496151,1753323060578,-161.328812,0.00020938,2]
[374496152,1753323060589,-154.54572,0.00020938,2]
[374496153,1753323060598,-154.54572,0.00020938,2]
[374496154,1753323060607,-501.92555679,0.00020944,2]
[374496155,1753323060616,-501.36322581,0.00020944,2]
[374496156,1753323060627,-500.0,0.00020944,2]
[374496157,1753323060636,-501.33755722,0.00020944,2]
[374496158,1753323060646,-501.57381091,0.00020944,2]
[374496159,1753323060655,-501.11103663,0.00020944,2]
[374496160,1753323060665,-501.78892444,0.00020944,2]
[374496161,1753323060674,-2000.0,0.00021,5]
[374496162,1753323060683,-4299.0,0.00021007,2]
[374496163,1753323060692,-151.0,0.00021007,2]
[374496164,1753323060702,-151.0,0.00021007,2]
[374496165,1753323060711,-223.0315306,0.00021036,2]
[374496166,1753323060721,-9224.90297699,0.00021074,2]
[374496167,1753323060730,-375.751651,0.00021084,2]
[374496168,1753323060739,-670.300583,0.00021084,2]
[374496169,1753323060749,-375.751651,0.00021084,2]
[374496170,1753323060758,-670.300583,0.00021084,2]
[374496171,1753323060768,-230.536334,0.00021084,2]
[374496172,1753323060778,-230.536334,0.00021084,2]
[374496173,1753323060787,-151.0,0.00021084,2]
[374496174,1753323060796,-683.176963,0.00021084,2]
[374496175,1753323060806,-683.176963,0.00021084,2]
[374496176,1753323060815,-151.0,0.00021094,2]
[374496177,1753323060825,-310.47888,0.00021094,2]
[374496178,1753323060841,-310.47888,0.00021094,2]
[374496179,1753323060851,-151.0,0.00021095,2]
[374496180,1753323060860,-151.0,0.00021095,2]
[374496181,1753323060869,-151.0,0.00021095,2]
[374496182,1753323060878,-188.675388,0.00021095,2]
[374496183,1753323060887,-188.675388,0.00021095,2]
[374496184,1753323060897,-151.0,0.00021095,2]
[374496185,1753323060906,-151.0,0.00021095,2]
[374496186,1753323060915,-161.004832,0.00021095,2]
[374496187,1753323060924,-161.004832,0.00021095,2]
[374496188,1753323060934,-160.983736,0.00021095,2]
[374496189,1753323060943,-160.983736,0.00021095,2]
[374496190,1753323060952,-460.0,0.00021095,2]
[374496191,1753323060962,-152.850158,0.00021095,2]
[374496192,1753323060971,-151.0,0.00021095,2]
[374496193,1753323060981,-151.0,0.00021095,2]
[374496194,1753323060990,-263.593026,0.00021095,2]
[374496195,1753323061001,-263.593026,0.00021095,2]
[374496196,1753323061010,-460.0,0.00021095,2]
[374496197,1753323061020,-152.053904,0.00021095,2]
[374496198,1753323061029,-151.0,0.00021095,2]
[374496199,1753323061040,-215.16279,0.00021095,2]
[374496200,1753323061049,-215.16279,0.00021095,2]
[374496201,1753323061059,-210.889987,0.00021095,2]
[374496202,1753323061069,-210.889987,0.00021095,2]
[374496203,1753323061078,-195.032548,0.00021095,2]
[374496204,1753323061089,-195.032548,0.00021095,2]
[374496205,1753323061098,-151.0,0.00021095,2]
[374496206,1753323061108,-468.89784007,0.00021095,2]
[374496207,1753323061117,-151.0,0.00021095,2]
[374496208,1753323061127,-460.0,0.00021095,2]
[374496209,1753323061136,-151.0,0.00021095,2]
[374496210,1753323061146,-460.0,0.00021095,2]
[374496211,1753323061156,-2281.277175,0.00021095,2]
[374496212,1753323061165,-2281.277175,0.00021095,2]
[374496213,1753323061175,-171.62960961,0.00021095,2]
[374496214,1753323061184,-460.0,0.00021095,2]
[374496215,1753323061193,-961.6,0.00021095,2]
[374496216,1753323061202,-460.0,0.00021095,2]
[374496217,1753323061212,-460.0,0.00021095,2]
[374496218,1753323061222,-460.0,0.00021095,2]
[374496219,1753323061231,-470.55213559,0.00021095,2]
[374496220,1753323061240,-460.0,0.00021095,2]
[374496221,1753323061249,-460.0,0.00021095,2]
[374496222,1753323061258,-628.309538,0.00021095,2]
[374496223,1753323061269,-628.309538,0.00021095,2]
[374496224,1753323061279,-460.0,0.00021095,2]
[374496225,1753323061288,-557.69,0.00021095,2]
[374496226,1753323061299,-460.0,0.00021095,2]
[374496227,1753323061308,-460.0,0.00021095,2]
[374496228,1753323061317,-250.78057477,0.00021095,2]
[374496229,1753323061327,-319.81496168,0.00021095,2]
[374496230,1753323061337,-460.0,0.00021095,2]
[374496231,1753323061347,-460.0,0.00021095,2]
[374496232,1753323061358,-460.0,0.00021095,2]
[374496233,1753323061368,-719.088534,0.00021095,2]
[374496234,1753323061378,-460.0,0.00021095,2]
[374496235,1753323061388,-719.088532,0.00021095,2]
[374496236,1753323061399,-378.00348505,0.00021095,2]
[374496237,1753323061409,-160.596905,0.00021095,2]
[374496238,1753323061419,-465.77109629,0.00021095,2]
[374496239,1753323061428,-151.0,0.00021095,2]
[374496240,1753323061437,-460.0,0.00021095,2]
[374496241,1753323061447,-160.596906,0.00021095,2]
[374496242,1753323061457,-460.0,0.00021095,2]
[374496243,1753323061468,-460.0,0.00021095,2]
[374496244,1753323061477,-167.217278,0.00021095,2]
[374496245,1753323061486,-460.0,0.00021095,2]
[374496246,1753323061498,-151.0,0.00021095,2]
[374496247,1753323061509,-167.217281,0.00021095,2]
[374496248,1753323061520,-472.35439432,0.00021095,2]
[374496249,1753323061531,-460.0,0.00021095,2]
[374496250,1753323061542,-460.0,0.00021095,2]
[374496251,1753323061553,-460.0,0.00021095,2]
[374496252,1753323061562,-1973.77,0.00021095,2]
[374496253,1753323061572,-460.0,0.00021095,2]
[374496254,1753323061582,-4451.63742965,0.00021095,2]
[374496255,1753323061595,-868.58257035,0.00021095,2]
[374496256,1753323061605,-460.0,0.00021095,2]
[374496257,1753323061614,-442.65340283,0.00021095,2]
[374496258,1753323061624,-669.67,0.00021095,2]
[374496259,1753323061634,-625.84,0.00021095,2]
[374496260,1753323061643,-460.0,0.00021095,2]
[374496261,1753323061653,-1952.97,0.00021095,2]
[374496262,1753323061662,-460.0,0.00021095,2]
[374496263,1753323061671,-460.0,0.00021095,2]
[374496264,1753323061680,-460.17,0.00021095,2]
[374496265,1753323061692,-460.0,0.00021095,2]
[374496266,1753323061702,-497.36,0.00021095,2]
[374496267,1753323061712,-563.0,0.00021095,2]
[374496268,1753323061721,-2277.55,0.00021095,2]
[374496269,1753323061731,-460.0,0.00021095,2]
[374496270,1753323061741,-460.0,0.00021095,2]
[374496271,1753323061822,-460.0,0.00021095,2]
[374496272,1753323061834,-460.0,0.00021095,2]
[374496273,1753323061843,-557.76,0.00021095,2]
[374496274,1753323061853,-686.54,0.00021095,2]
[374496275,1753323061862,-427.19180637,0.00021095,2]
[374496276,1753323061871,-460.0,0.00021095,2]
[374496277,1753323061880,-1292.96,0.00021095,2]
[374496278,1753323061889,-470.08920445,0.00021095,2]
[374496279,1753323061898,-460.0,0.00021095,2]
[374496280,1753323061907,-4894.7,0.00021095,2]
[374496281,1753323061916,-460.0,0.00021095,2]
[374496282,1753323061926,-460.0,0.00021095,2]
[374496283,1753323061935,-460.0,0.00021095,2]
[374496284,1753323061945,-460.0,0.00021095,2]
[374496285,1753323061954,-400.91368269,0.00021095,2]
[374496286,1753323061966,-59.08631731,0.00021095,2]
[374496287,1753323061976,-448.73073485,0.00021095,2]
[374496288,1753323061995,-11.26926515,0.00021095,2]
[374496289,1753323062005,-1522.93,0.00021095,2]
[374496290,1753323062014,-460.0,0.00021095,2]
[374496291,1753323062024,-206.113409,0.00021095,2]
[374496292,1753323062033,-1673.05,0.00021095,2]
[374496293,1753323062042,-206.113418,0.00021095,2]
[374496294,1753323062051,-999.29,0.00021095,2]
[374496295,1753323062060,-460.0,0.00021095,2]
[374496296,1753323062069,-1145.01,0.00021095,2]
[374496297,1753323062079,-534.2,0.00021095,2]
[374496298,1753323062088,-460.0,0.00021095,2]
[374496299,1753323062097,-625.64,0.00021095,2]
[374496300,1753323062106,-460.0,0.00021095,2]
[374496301,1753323062115,-460.0,0.00021095,2]
[374496302,1753323062125,-163.25886918,0.00021095,2]
[374496303,1753323062134,-460.0,0.00021095,2]
[374496304,1753323062144,-566.83,0.00021095,2]
[374496305,1753323062153,-1345.82,0.00021095,2]
[374496306,1753323062162,-631.8,0.00021095,2]
[374496307,1753323062171,-487.13185953,0.00021096,2]
[374496308,1753323062180,-152.238083,0.00021108,2]
[374496309,1753323062189,-151.0,0.00021108,2]
[374496310,1753323062199,-151.0,0.00021108,2]
[374496311,1753323062208,-170.485201,0.00021108,2]
[374496312,1753323062218,-170.485201,0.00021108,2]
[374496313,1753323062228,-151.0,0.00021108,2]
[374496314,1753323062238,-375.751651,0.00021108,2]
[374496315,1753323062247,-670.300583,0.00021108,2]
[374496316,1753323062257,-375.751651,0.00021108,2]
[374496317,1753323062267,-670.300583,0.00021108,2]
[374496318,1753323062278,-230.536334,0.00021108,2]
[374496319,1753323062288,-230.536334,0.00021108,2]
[374496320,1753323062297,-151.0,0.00021108,2]
[374496321,1753323062306,-329.548796,0.00021108,2]
[374496322,1753323062315,-329.548796,0.00021108,2]
[374496323,1753323062324,-272.699443,0.00021108,2]
[374496324,1753323062335,-272.699443,0.00021108,2]
[374496325,1753323062344,-683.176963,0.00021108,2]
[374496326,1753323062365,-683.176963,0.00021108,2]
[374496327,1753323062381,-628.309538,0.00021108,2]
[374496328,1753323062400,-628.309538,0.00021108,2]
[374496329,1753323062418,-226.710324,0.00021108,2]
[374496330,1753323062439,-226.710324,0.00021108,2]
[374496331,1753323062456,-210.718708,0.00021108,2]
[374496332,1753323062474,-210.718708,0.00021108,2]
[374496333,1753323062491,-151.0,0.00021108,2]
[374496334,1753323062509,-639.065508,0.00021108,2]
[374496335,1753323062527,-639.065508,0.00021108,2]
[374496336,1753323062545,-513.85239081,0.00021116,2]
[374496337,1753323062562,-181.72,0.0002114,2]
[374496338,1753323062575,-500.0,0.00021164,2]
[374496339,1753323062594,-151.0,0.00021222,2]
[374496340,1753323062609,-151.0,0.00021222,2]
[374496341,1753323062625,-344.096411,0.00021222,8]
[374496342,1753323062640,-162.0,0.000213,3]
[374496343,1753323062656,-162.0,0.000213,3]
[374496344,1753323062671,-162.0,0.000213,4]
[374496345,1753323062686,-162.0,0.000213,4]
[374496346,1753323062700,-162.0,0.000213,4]
[374496347,1753323062715,-490.176479,0.000213,2]
[374496348,1753323062729,-370.14747,0.000213,2]
[374496349,1753323062743,-490.176479,0.000213,2]
[374496350,1753323062758,-370.14747,0.000213,2]
[374496351,1753323062773,-151.0,0.00021369,2]
[374496352,1753323062788,-161.328812,0.00021369,2]
[374496353,1753323062802,-154.54572,0.00021369,2]
[374496354,1753323062817,-154.54572,0.00021369,2]
[374496355,1753323062830,-460.0,0.00021369,2]
[374496356,1753323062840,-152.157885,0.00021369,2]
[374496357,1753323062850,-310.47888,0.00021369,2]
[374496358,1753323062860,-310.47888,0.00021369,2]
[374496359,1753323062871,-151.0,0.00021369,2]
[374496360,1753323062881,-151.0,0.00021369,2]
[374496361,1753323062890,-263.593026,0.00021369,2]
[374496362,1753323062900,-263.593026,0.00021369,2]
[374496363,1753323062909,-460.0,0.00021369,2]
[374496364,1753323062919,-151.0,0.00021369,2]
[374496365,1753323062929,-215.16279,0.00021369,2]
[374496366,1753323062938,-215.16279,0.00021369,2]
[374496367,1753323062949,-195.032548,0.00021369,2]
[374496368,1753323062961,-195.032548,0.00021369,2]
[374496369,1753323062971,-151.0,0.00021369,2]
[374496370,1753323062981,-206.846852,0.00021369,2]
[374496371,1753323062991,-460.0,0.00021369,2]
[374496372,1753323063002,-151.0,0.00021369,2]
[374496373,1753323063011,-460.0,0.00021369,2]
[374496374,1753323063022,-2281.277175,0.00021369,2]
[374496375,1753323063032,-482.14564634,0.00021369,2]
[374496376,1753323063378,-908.64373196,0.00019178,2]
[374496377,1753323063388,-462.10492443,0.00019178,2]
[374496378,1753323063399,-460.0,0.00020273,2]
[374496379,1753323063409,-460.0,0.00020547,2]
[374496380,1753323063419,-470.58285858,0.00020821,2]
[374496381,1753323063429,-338.66848503,0.00021369,2]
[374496382,1753323063443,-1460.46304363,0.00021369,2]
[374496383,1753323063454,-460.0,0.00021369,2]
[374496384,1753323063465,-961.6,0.00021369,2]
[374496385,1753323063475,-460.0,0.00021369,2]
[374496386,1753323063485,-226.27495152,0.00021369,2]
[374496387,1753323063497,-460.0,0.00021369,2]
[374496388,1753323063509,-460.0,0.00021369,2]
[374496389,1753323063522,-376.35928539,0.00021369,2]
[374496390,1753323063531,-460.0,0.00021369,2]
[374496391,1753323063541,-557.69,0.00021369,2]
[374496392,1753323063551,-460.0,0.00021369,2]
[374496393,1753323063561,-460.0,0.00021369,2]
[374496394,1753323063571,-460.0,0.00021369,2]
[374496395,1753323063581,-395.0447456,0.00021369,2]
[374496397,1753323120920,150.0,0.00022793,30]
[374496402,1753323206402,150.0,0.00022626,30]
[374496404,1753323233666,-157.88008858,0.00018408,2]
[374496405,1753323233693,-838.48,0.00018868,3]
[374496406,1753323233714,-497.80198014,0.00018876,2]
[374496407,1753323233735,-300.0,0.00018877,2]
[374496408,1753323233755,-52494.83793128,0.00018878,2]
[374496409,1753323245969,151.0,0.000179,2]
[374496410,1753323284105,150.0,0.00022645,30]
[374496411,1753323363084,-150.0,0.00018631,2]
[374496412,1753323364174,150.0,0.00022747,30]
[374496414,1753323436237,150.0,0.00022689,30]
[374496415,1753323579776,20000.0,0.00017871,2]
[374496421,1753323676078,237.35068,0.00013699,2]
[374496427,1753323871433,150.0,0.00022798,30]
[374496428,1753323933127,-170.85583183,0.00018675,2]
[374496429,1753323933150,-243.14416817,0.00018767,2]
[374496430,1753323944083,-537.33958779,0.00018767,2]
[374496431,1753323944104,-170.85583182,0.00018767,2]
[374496432,1753323944125,-185.45987389,0.00018768,2]
[374496433,1753323944147,-185.45987389,0.00018775,2]
[374496434,1753323944169,-779.80449425,0.00018777,2]
[374496435,1753323944612,150.0,0.00022878,30]
[374496442,1753324000441,319.8750419,0.00017871,2]
[374496443,1753324009249,1595.0,0.00026,120]
[374496444,1753324021112,150.0,0.00022843,30]
[374496445,1753324030091,-421.0,0.00018777,2]
[374496446,1753324030115,-225.82516292,0.00018777,2]
[374496447,1753324030151,-74.17483708,0.00018777,2]
[374496448,1753324030174,-787.35034741,0.00018778,2]
[374496449,1753324031127,-597.03078283,0.00018778,2]
[374496450,1753324038090,-169.48136937,0.00018778,2]
[374496451,1753324039219,-306.89792753,0.00018778,2]
[374496452,1753324069363,154.96391439,0.000246,120]
[374496453,1753324089314,5148.67709386,0.00025382,120]
[374496462,1753324188119,261.205201,0.00017849,2]
[374496505,1753324232130,-157.68439695,0.00018301,2]
[374496507,1753324232141,-734.35604021,0.00018766,2]
[374496509,1753324232150,-5927.67575041,0.000188,2]
[374496511,1753324232160,-1519.49543904,0.000188,2]
[374496513,1753324232169,-300.0,0.00018864,2]
[374496515,1753324232180,-1200.0,0.00018864,2]
[374496517,1753324232189,-500.0,0.00018865,2]
[374496519,1753324232199,-424.5223466,0.00018865,2]
[374496521,1753324232209,-500.0,0.00018865,2]
[374496523,1753324232219,-498.26602679,0.00018865,2]
[374496525,1753324232231,-1.73397321,0.00018865,2]
[374496527,1753324232240,-500.0,0.00018865,2]
[374496529,1753324232250,-500.0,0.00018865,2]
[374496531,1753324232259,-500.0,0.00018865,2]
[374496533,1753324232268,-50000.0,0.00018866,2]
[374496535,1753324232278,-500.0,0.00018867,2]
[374496537,1753324232288,-978.18,0.00018868,3]
[374496539,1753324232296,-489.09,0.00018868,3]
[374496541,1753324232306,-244.54,0.00018868,3]
[374496543,1753324232315,-733.65,0.00018868,3]
[374496545,1753324232325,-500.61129413,0.00018873,2]
[374496547,1753324232334,-531.35225831,0.00018873,2]
[374496549,1753324232343,-151.0,0.00018873,2]
[374496551,1753324232353,-1091.0,0.00018873,2]
[374496553,1753324232362,-152.36716557,0.00018873,2]
[374496555,1753324232372,-500.0,0.00018873,2]
[374496557,1753324232381,-846.0,0.00018875,2]
[374496559,1753324232391,-151.0,0.00018875,2]
[374496561,1753324232400,-221.79610385,0.00018875,2]
[374496563,1753324232409,-151.0,0.00018875,2]
[374496565,1753324232419,-152.04490688,0.00018876,2]
[374496567,1753324232428,-152.86624837,0.00018876,2]
[374496569,1753324232437,-151.0,0.00018876,2]
[374496571,1753324232447,-200.10251731,0.00018876,2]
[374496572,1753324232456,-151.84783247,0.00018876,2]
[374496574,1753324232465,-151.0,0.00018876,2]
[374496576,1753324232474,-219927.88503541,0.00018878,2]
[374496579,1753324232486,-4336.95100099,0.00018878,2]
[374496599,1753324238087,-200.0,0.00018878,10]
[374496600,1753324238097,-107.71079408,0.00018878,10]
[374496601,1753324238143,-92.28920592,0.00018878,10]
[374496602,1753324238152,-225.55079408,0.00018878,2]
[374496603,1753324238164,-647.34731994,0.00018878,2]
[374496604,1753324238173,-150.0,0.000189,2]
[374496605,1753324238184,-151.0,0.00019,2]
[374496606,1753324238193,-666.08240319,0.00019075,2]
[374496607,1753324238205,-853.41303581,0.00019075,2]
[374496608,1753324238214,-868.09216739,0.00019078,2]
[374496609,1753324238227,-1171.34703863,0.00019078,2]
[374496610,1753324238237,-97.01585622,0.00019113,2]
[374496611,1753324238248,-123.81338621,0.00019113,2]
[374496612,1753324238257,-500.0,0.00019141,2]
[374496613,1753324238267,-199.08925917,0.00019147,2]
[374496614,1753324238276,-215.50452742,0.00019147,2]
[374496615,1753324238288,-875.49547258,0.00019147,2]
[374496616,1753324238297,-500.0,0.00019147,2]
[374496617,1753324238306,-839.10166702,0.00019149,2]
[374496618,1753324238318,-6.89833298,0.00019149,2]
[374496619,1753324238327,-151.0,0.00019149,2]
[374496620,1753324238336,-151.0,0.00019149,2]
[374496621,1753324238346,-151.0,0.0001915,2]
[374496622,1753324238354,-151.0,0.0001915,2]
[374496623,1753324238363,-246.91164702,0.00019173,2]
[374496624,1753324238379,-253.08835298,0.00019173,2]
[374496625,1753324238389,-500.0,0.00019173,2]
[374496626,1753324238398,-500.0,0.00019173,2]
[374496627,1753324238408,-500.67794417,0.00019173,2]
[374496628,1753324238417,-500.0,0.00019173,2]
[374496629,1753324238427,-157.171,0.00019177,2]
[374496630,1753324238437,-312.02784351,0.00019177,2]
[374496631,1753324238447,-460.98971703,0.00019178,2]
[374496632,1753324238456,-460.75633619,0.00019178,2]
[374496633,1753324238466,-460.95702724,0.00019178,2]
[374496634,1753324238475,-596.69738931,0.00019178,2]
[374496635,1753324238486,-151.0,0.00019178,2]
[374496636,1753324238495,-151.0,0.00019178,2]
[374496637,1753324238505,-151.0,0.00019178,2]
[374496638,1753324238514,-151.0,0.00019178,2]
[374496639,1753324238523,-462.66433528,0.00019178,2]
[374496640,1753324238533,-195.113743,0.00019178,2]
[374496641,1753324238542,-460.0,0.00019178,2]
[374496642,1753324238553,-195.113743,0.00019178,2]
[374496643,1753324238567,-462.4620737,0.00019178,2]
[374496644,1753324238576,-460.0,0.00019178,2]
[374496645,1753324238585,-263.07841896,0.00019178,2]
[374496646,1753324238594,-461.61543857,0.00019178,2]
[374496647,1753324238603,-462.56174308,0.00019178,2]
[374496648,1753324238613,-463.7885405,0.00019178,2]
[374496649,1753324238623,-460.0,0.00019178,2]
[374496650,1753324238632,-472.19134075,0.00019178,2]
[374496651,1753324238642,-514.38088083,0.00019178,2]
[374496652,1753324238651,-460.0,0.00019178,2]
[374496653,1753324238661,-461.38750695,0.00019178,2]
[374496654,1753324238671,-460.82118327,0.00019178,2]
[374496655,1753324238680,-460.0,0.00019178,2]
[374496656,1753324238690,-461.97766655,0.00019178,2]
[374496657,1753324238699,-462.2447876,0.00019178,2]
[374496658,1753324238709,-288.84622299,0.00019178,2]
[374496659,1753324238718,-460.0,0.00019178,2]
[374496660,1753324238727,-460.97892291,0.00019178,2]
[374496661,1753324238736,-521.94795357,0.00019178,2]
[374496662,1753324238745,-465.09207768,0.00019178,2]
[374496663,1753324238755,-462.22460706,0.00019178,2]
[374496664,1753324238764,-460.0,0.00019178,2]
[374496665,1753324238773,-1423.89,0.00019178,2]
[374496666,1753324238783,-461.11446657,0.00019178,2]
[374496667,1753324238795,-502.44975929,0.00019178,2]
[374496668,1753324238807,-462.59160284,0.00019178,2]
[374496669,1753324238816,-467.70024104,0.00019178,2]
[374496670,1753324238825,-462.27105173,0.00019178,2]
[374496671,1753324238837,-461.51390595,0.00019178,2]
[374496672,1753324238850,-460.45793471,0.00019178,2]
[374496673,1753324238860,-460.0,0.00019178,2]
[374496674,1753324238869,-460.0,0.00019178,2]
[374496675,1753324238878,-460.0,0.00019178,2]
[374496676,1753324238890,-460.0,0.00019178,2]
[374496677,1753324238900,-460.0,0.00019178,2]
[374496678,1753324238909,-460.0,0.00019178,2]
[374496679,1753324238919,-461.81385601,0.00019178,2]
[374496680,1753324238928,-460.0,0.00019178,2]
[374496681,1753324238937,-461.06297122,0.00019178,2]
[374496682,1753324238947,-460.0,0.00019178,2]
[374496683,1753324238956,-303.85787991,0.00019178,2]
[374496684,1753324238965,-460.0,0.00019178,2]
[374496685,1753324238975,-460.99542742,0.00019178,2]
[374496686,1753324238983,-460.0,0.00019178,2]
[374496687,1753324238994,-461.67511555,0.00019178,2]
[374496688,1753324239003,-460.0,0.00019178,2]
[374496689,1753324239013,-461.47742463,0.00019178,2]
[374496690,1753324239023,-457.0,0.00019178,2]
[374496691,1753324239032,-566.01904063,0.00019178,2]
[374496692,1753324239042,-460.0,0.00019178,2]
[374496693,1753324239052,-460.0,0.00019178,2]
[374496694,1753324239061,-460.0,0.00019178,2]
[374496695,1753324239072,-460.0,0.00019178,2]
[374496696,1753324239081,-463.2740059,0.00019178,2]
[374496697,1753324239091,-462.84019923,0.00019178,2]
[374496698,1753324239100,-460.0,0.00019178,2]
[374496699,1753324239110,-460.0,0.00019178,2]
[374496700,1753324239120,-464.02790049,0.00019178,2]
[374496701,1753324239130,-463.81796763,0.00019178,2]
[374496702,1753324239140,-462.1311868,0.00019178,2]
[374496703,1753324239149,-462.71600049,0.00019178,2]
[374496704,1753324239159,-460.0,0.00019178,2]
[374496705,1753324239169,-460.0,0.00019178,2]
[374496706,1753324239178,-462.40869431,0.00019178,2]
[374496707,1753324239188,-461.94131573,0.00019178,2]
[374496708,1753324239199,-463.23797748,0.00019178,2]
[374496709,1753324239209,-460.0,0.00019178,2]
[374496710,1753324239219,-460.0,0.00019178,2]
[374496711,1753324239228,-462.192985,0.00019178,2]
[374496712,1753324239238,-461.56046994,0.00019178,2]
[374496713,1753324239247,-460.0,0.00019178,2]
[374496714,1753324239258,-1828.06,0.00019178,2]
[374496715,1753324239268,-465.50436324,0.00019178,2]
[374496716,1753324239278,-460.0,0.00019178,2]
[374496717,1753324239287,-460.0,0.00019178,2]
[374496718,1753324239296,-461.8257664,0.00019178,2]
[374496719,1753324239306,-460.0,0.00019178,2]
[374496720,1753324239316,-461.63962533,0.00019178,2]
[374496721,1753324239327,-460.0,0.00019178,2]
[374496722,1753324239336,-466.16599083,0.00019178,2]